lending/lending_fUSD_20240130
["ID","MTS","AMOUNT","RATE_DAILY","PERIOD"]
[313016687,1706625046826,-296.30780668,0.00023,2]
[313016694,1706625064256,207.0,0.00022213,2]
[313016712,1706625098905,1330.45949803,0.00026,7]
[313016827,1706625208795,257.55,0.00022001,2]
[313016828,1706625380631,165.34,0.00019961,2]
[313016829,1706625380886,165.34,0.00022225,2]
[313016830,1706625477403,168.31,0.00017931,2]
[313016876,1706625550673,2178.05,0.00021879,2]
[313016888,1706625580763,504.1,0.00021879,2]
[313016925,1706625658030,214.62,0.00021887,2]
[313016945,1706625801673,156.47,0.00019964,2]
[313016946,1706625801793,156.47,0.00022228,2]
[313016947,1706625840061,283.46338166,0.00021887,2]
[313016948,1706625933929,206.0,0.00022362,2]
[313017038,1706626036107,-240.36283375,0.00022521,2]
[313017039,1706626036129,-533.56145808,0.00022522,2]
[313017040,1706626036149,-93.84252057,0.00022523,2]
[313017050,1706626076423,596.72,0.00021886,2]
[313017051,1706626104886,178.85,0.00021886,2]
[313017052,1706626168051,211.66,0.00021891,2]
[313017091,1706626232141,-72.15747943,0.00022523,2]
[313017093,1706626232151,-370.64138861,0.000226,2]
[313017096,1706626232160,-205.70049659,0.00022755,2]
[313017098,1706626232169,-179.72879398,0.00022755,2]
[313017100,1706626232178,-150.0,0.00022755,2]
[313017103,1706626232187,-21.77184139,0.00022756,2]
[313017114,1706626232302,-2633.85372416,0.00022756,2]
[313017125,1706626232420,-355.84956598,0.00022756,2]
[313017162,1706626238164,-681.37486847,0.00022756,2]
[313017163,1706626238173,-19999.99,0.00022756,2]
[313017164,1706626238182,-1109.28081234,0.00022756,2]
[313017165,1706626238209,-810.39918766,0.00022756,2]
[313017166,1706626238219,-14322.97,0.00022756,2]
[313017167,1706626238228,-26342.84,0.00022756,2]
[313017168,1706626238238,-1439.11,0.00022756,2]
[313017169,1706626238248,-499.99,0.00022756,2]
[313017170,1706626238257,-2174.33,0.00022757,2]
[313017171,1706626238267,-1974.19553701,0.00022768,2]
[313017172,1706626238277,-800.0,0.00022816,2]
[313017173,1706626238287,-153.93120297,0.0002288,2]
[313017174,1706626238296,-153.93120297,0.0002289,2]
[313017175,1706626238305,-1455.54345979,0.00022898,2]
[313017176,1706626238315,-714.34,0.00022899,2]
[313017177,1706626238325,-717.65,0.000229,2]
[313017178,1706626238335,-737.56,0.000229,2]
[313017179,1706626238345,-330.44447064,0.000229,2]
[313017180,1706626238354,-153.93120297,0.000229,2]
[313017181,1706626238364,-2055.2734,0.000229,2]
[313017182,1706626238374,-154.82983632,0.000229,2]
[313017183,1706626238389,-3100.4642,0.000229,2]
[313017184,1706626238399,-5000.0,0.000229,2]
[313017185,1706626238409,-544.60515498,0.000229,2]
[313017186,1706626238419,-187.41429036,0.000229,2]
[313017187,1706626238428,-1232.02205182,0.000229,2]
[313017188,1706626238438,-2716.54693303,0.000229,2]
[313017189,1706626238448,-226.69261519,0.0002299,2]
[313017190,1706626238457,-513.32975692,0.0002299,3]
[313017191,1706626238466,-734.8,0.00022994,2]
[313017192,1706626238477,-530.71266185,0.00022998,2]
[313017193,1706626238486,-306.0102269,0.00022998,2]
[313017194,1706626238495,-233.44048227,0.00022998,2]
[313017195,1706626238505,-526.01403717,0.00022998,2]
[313017196,1706626238515,-257.3635471,0.00022998,2]
[313017197,1706626238525,-179.19899078,0.00022998,2]
[313017198,1706626238534,-1000.0,0.00022998,2]
[313017199,1706626238544,-4256.30556535,0.00022998,2]
[313017200,1706626238553,-4951.80312421,0.00022998,2]
[313017203,1706626238565,-160.0,0.00022998,2]
[313017204,1706626238575,-768.55606507,0.00022998,2]
[313017207,1706626238585,-5000.19534161,0.00022999,2]
[313017208,1706626238594,-3303.45578245,0.00022999,2]
[313017210,1706626238603,-1358.70995226,0.00023,3]
[313017212,1706626238613,-734.55,0.00023,2]
[313017214,1706626238622,-43285.86977662,0.00023,2]
[313017216,1706626238635,-67781.67592913,0.00023,2]
[313017217,1706626238651,-48864.53917368,0.00023,2]
[313017218,1706626238671,-133579.00730008,0.00023,2]
[313017219,1706626238683,-194783.14638142,0.00023,2]
[313017220,1706626238704,-1578.3,0.00023,2]
[313017221,1706626238729,-3153.28430224,0.00023,2]
[313017222,1706626238741,-5221.8425042,0.00023,2]
[313017235,1706626240808,-1009.36561679,0.00023,2]
[313017236,1706626241562,-1986.66840668,0.00023,2]
[313017238,1706626241573,-856.9637095,0.00023,2]
[313017241,1706626241594,-4001.5,0.00023,2]
[313017280,1706626243251,-1986.66804457,0.00023,2]
[313017282,1706626243263,-3210.98426152,0.00023,2]
[313017292,1706626243670,-20537.17476851,0.00023,2]
[313017311,1706626246178,-160255.81109504,0.00023,2]
[313017314,1706626246235,-5153.6,0.00023,2]
[313017315,1706626246296,-737.23086319,0.00023,2]
[313017316,1706626246460,-124039.84000003,0.00023,2]
[313017350,1706626251905,156.47,0.0002241,2]
[313017352,1706626293407,3172.40086865,0.00026,7]
[313017358,1706626530300,238.68809448,0.00021989,2]
[313017359,1706626530325,283.93190552,0.00021989,2]
[313017360,1706626538052,178.85,0.00021989,2]
[313017386,1706626693814,5117.76957062,0.00020608,5]
[313017387,1706626693837,6010.32835121,0.00020608,5]
[313017388,1706626726042,-154.37514688,0.000228,2]
[313017389,1706626726064,-9005.62485312,0.000228,2]
[313017390,1706626751391,156.47,0.00020159,2]
[313017396,1706626963908,178.85,0.00021973,2]
[313017397,1706626983989,206.0,0.00022499,2]
[313017398,1706627007869,581.9,0.00021971,2]
[313017399,1706627189356,156.47,0.00020054,2]
[313017420,1706627248097,-671.67982346,0.000228,2]
[313017422,1706627264403,211.66,0.00022041,2]
[313017442,1706627432369,-178.85,0.00022633,2]
[313017443,1706627432378,-154.37514685,0.00022716,2]
[313017444,1706627432388,-154.37514685,0.00022728,2]
[313017445,1706627432397,-154.37514685,0.00022739,2]
[313017446,1706627432407,-154.37514685,0.00022751,2]
[313017447,1706627432416,-12.4644126,0.00022762,2]
[313017448,1706627432440,-141.91073425,0.00022762,2]
[313017449,1706627432449,-154.37514685,0.00022774,2]
[313017450,1706627432459,-300.0,0.00022799,2]
[313017451,1706627432468,-200.0,0.00022816,2]
[313017452,1706627432477,-800.0,0.00022816,2]
[313017453,1706627432486,-200.0,0.00022816,2]
[313017454,1706627432496,-3820.99,0.00022858,2]
[313017455,1706627432505,-499.99,0.00022868,2]
[313017456,1706627432514,-150.99,0.00022877,2]
[313017457,1706627432523,-671.67168592,0.00022898,2]
[313017458,1706627432533,-3688.30640648,0.00022899,2]
[313017459,1706627432542,-715.64,0.000229,2]
[313017460,1706627432551,-732.56,0.000229,2]
[313017461,1706627432561,-1000.0,0.000229,2]
[313017462,1706627432572,-47990.18475068,0.000229,2]
[313017463,1706627432588,-1506.50744281,0.000229,2]
[313017464,1706627432607,-324.4017795,0.000229,2]
[313017466,1706627432626,-10438.12439792,0.000229,2]
[313017488,1706627438385,-154.37514685,0.00022785,2]
[313017489,1706627438394,-86062.08455801,0.000229,2]
[313017490,1706627438406,-719.51897108,0.000229,2]
[313017491,1706627438416,-264.35557652,0.000229,2]
[313017492,1706627438425,-154.47512055,0.000229,2]
[313017493,1706627438440,-5000.0,0.000229,2]
[313017494,1706627438450,-179.7478753,0.000229,4]
[313017495,1706627438460,-387.59120115,0.000229,6]
[313017496,1706627438469,-348.06890799,0.000229,2]
[313017497,1706627438479,-717.81,0.000229,2]
[313017498,1706627438488,-156.47,0.00022922,2]
[313017499,1706627438498,-853.85628213,0.00022998,3]
[313017500,1706627438507,-348.434193,0.00022998,2]
[313017501,1706627438517,-207.80245874,0.00022999,2]
[313017502,1706627438526,-353.57284129,0.00022999,2]
[313017503,1706627438536,-389.98813853,0.00022999,2]
[313017504,1706627438546,-228.79385703,0.00022999,2]
[313017505,1706627438555,-231.65169063,0.00022999,2]
[313017506,1706627438565,-212.73878423,0.00022999,2]
[313017507,1706627438574,-17057.5435708,0.00023,2]
[313017508,1706627438587,-60001.24033257,0.00023,2]
[313017509,1706627438598,-306082.87843868,0.00023,2]
[313017510,1706627438617,-375459.46098732,0.00023,2]
[313017511,1706627438628,-194783.14638142,0.00023,2]
[313017512,1706627438652,-880.07803103,0.00023,2]
[313017513,1706627439169,-1016.94337793,0.00023,2]
[313017523,1706627440961,-1464.86242603,0.00023,2]
[313017524,1706627440973,-1424.40289611,0.00023,2]
[313017525,1706627441026,-1942.37721319,0.00023,2]
[313017526,1706627441037,-289.96267146,0.00023,2]
[313017527,1706627441050,-699.65573577,0.00023,2]
[313017528,1706627441085,-1965.79288405,0.00023,2]
[313017529,1706627441096,-1313.643421,0.00023,2]
[313017530,1706627441762,-143190.08259097,0.00023,2]
[313017531,1706627441881,-834.28714186,0.00023,2]
[313017532,1706627441892,-1075.51440885,0.00023,2]
[313017533,1706627441903,-29567.73029039,0.00023,2]
[313017647,1706627443413,-154.37514685,0.00022797,2]
[313017649,1706627443423,-4340.55076199,0.00023,2]
[313017651,1706627443512,-1308.87203521,0.00023,2]
[313017652,1706627443593,-1334.40390831,0.00023,2]
[313017653,1706627443604,-25822.51945069,0.00023,2]
[313017674,1706627446357,-201848.16487172,0.00023,2]
[313017675,1706627446369,-188752.59047878,0.00023,2]
[313017676,1706627446379,-196440.96749669,0.00023,2]
[313017677,1706627446388,-731.59,0.00023,2]
[313017678,1706627446397,-217672.26978339,0.00023,2]
[313017679,1706627446487,-793.88039319,0.00023,2]
[313017682,1706627649905,156.47,0.00020227,2]
[313017683,1706627674132,206.0,0.00026931,7]
[313017684,1706627697465,500.0,0.00020227,2]
[313017685,1706627736031,9500.0,0.00027,7]
[313017686,1706627746843,9500.0,0.00027,7]
[313017687,1706627760354,9500.0,0.00027,7]
[313017688,1706627769442,9500.0,0.00027,7]
[313017689,1706627777591,9500.0,0.00027,7]
[313017690,1706627785868,9500.0,0.00027,7]
[313017691,1706627794952,2217.75231507,0.00027,7]
[313017692,1706627830283,7282.24768493,0.00022,7]
[313017693,1706627834214,178.85,0.00022053,2]
[313017694,1706627903869,465.52,0.0002201,2]
[313017695,1706628125406,156.47,0.00020091,2]
[313017698,1706628228766,219.0,0.000225,2]
[313017706,1706628393810,207.0,0.00021624,2]
[313017707,1706628413731,178.85,0.00022309,2]
[313017708,1706628426139,-683.48003275,0.00022607,2]
[313017711,1706628515988,1000.0,0.00022259,2]
[313017712,1706628595901,156.47,0.00019921,2]
[313017713,1706628625529,499.39583585,0.00022468,2]
[313017714,1706628630413,282.08995367,0.00022467,2]
[313017723,1706628631584,-439.62247958,0.00022567,2]
[313017724,1706628631596,-560.37752042,0.00022567,2]
[313017725,1706628631606,-760.79247499,0.00022568,2]
[313017726,1706628631615,-98.30489183,0.00022569,2]
[313017727,1706628631626,-61.2568466,0.00022569,2]
[313017728,1706628631636,-159.56173842,0.0002259,2]
[313017729,1706628631645,-300.0,0.0002261,2]
[313017730,1706628631655,-150.0,0.0002261,2]
[313017731,1706628631664,-159.56173842,0.0002261,2]
[313017732,1706628631674,-4207.12580601,0.00022611,2]
[313017733,1706628631685,-1864.55715174,0.00022611,2]
[313017734,1706628631704,-11902.00729844,0.00022611,2]
[313017735,1706628631713,-159.56173842,0.00022631,2]
[313017736,1706628631722,-159.56173842,0.00022652,2]
[313017737,1706628631731,-3959.980118,0.00022669,2]
[313017738,1706628631741,-499.99,0.00022669,2]
[313017739,1706628631749,-9999.99,0.00022669,2]
[313017740,1706628631758,-733.26,0.00022669,2]
[313017741,1706628631767,-159.56173842,0.00022672,2]
[313017742,1706628631776,-389.11,0.00022672,2]
[313017743,1706628631785,-159.56173842,0.00022693,2]
[313017744,1706628631794,-159.56173842,0.00022714,2]
[313017745,1706628631803,-159.56173842,0.00022735,2]
[313017746,1706628631812,-159.56173842,0.00022755,2]
[313017747,1706628631821,-159.56173842,0.00022776,2]
[313017748,1706628631830,-721.24,0.00022796,2]
[313017749,1706628631839,-159.56173842,0.00022797,2]
[313017750,1706628631849,-7700.5638,0.000228,2]
[313017751,1706628631858,-177.189,0.000228,2]
[313017752,1706628631867,-14624.8359,0.000228,2]
[313017753,1706628631876,-517.4136,0.000228,2]
[313017755,1706628631885,-9368.2764,0.000228,2]
[313017756,1706628631894,-800.0,0.00022816,2]
[313017757,1706628631903,-159.56173842,0.00022817,2]
[313017758,1706628631913,-176.87,0.0002282,2]
[313017759,1706628631922,-159.56173842,0.00022838,2]
[313017760,1706628631931,-159.56173842,0.00022859,2]
[313017761,1706628631940,-159.56173842,0.00022879,2]
[313017762,1706628631949,-212.4174335,0.00022899,3]
[313017763,1706628631958,-683.47366054,0.00022899,2]
[313017764,1706628631968,-1774.22405659,0.00022899,2]
[313017765,1706628631977,-908.62076641,0.000229,2]
[313017766,1706628631986,-5292.42070321,0.000229,2]
[313017767,1706628632001,-2650.02266968,0.000229,2]
[313017768,1706628632013,-89726.93252711,0.000229,2]
[313017769,1706628632022,-311.5954488,0.000229,2]
[313017770,1706628632031,-5000.0,0.000229,2]
[313017771,1706628632040,-163.102421,0.000229,2]
[313017772,1706628632049,-154.43794934,0.000229,2]
[313017773,1706628632058,-159.56173842,0.000229,2]
[313017774,1706628632067,-310.07296092,0.000229,6]
[313017775,1706628632077,-1916.39160364,0.000229,2]
[313017776,1706628632086,-821.34803456,0.000229,2]
[313017777,1706628632095,-232.04593866,0.000229,2]
[313017778,1706628632104,-194.8441564,0.00022998,3]
[313017779,1706628632114,-203.12390135,0.00022998,2]
[313017780,1706628632122,-226.11786442,0.00022998,2]
[313017781,1706628632132,-3049.47052457,0.00022998,2]
[313017782,1706628632141,-212.95599231,0.00022998,2]
[313017783,1706628632150,-189.01095501,0.00022998,2]
[313017784,1706628632159,-3053.17569023,0.00022998,2]
[313017785,1706628632169,-489.30794803,0.00022998,2]
[313017786,1706628632178,-267.2715935,0.00022998,2]
[313017787,1706628632187,-352.19046089,0.00022998,2]
[313017788,1706628632197,-295.95881085,0.00022998,2]
[313017789,1706628632207,-220.51136302,0.00022998,2]
[313017790,1706628632216,-25708.36918087,0.00022998,2]
[313017791,1706628632225,-2061.58406454,0.00022998,2]
[313017792,1706628632235,-155.58191935,0.00022998,2]
[313017793,1706628632244,-6441.03694263,0.00022998,2]
[313017794,1706628632253,-3364.11628458,0.00022998,2]
[313017795,1706628632262,-362.29642557,0.00022998,2]
[313017796,1706628632271,-105535.95732218,0.00022998,2]
[313017797,1706628632283,-375.48056187,0.00022998,2]
[313017798,1706628632307,-658.46,0.00022998,2]
[313017799,1706628632318,-624.13,0.00022998,2]
[313017820,1706628637533,-430.0,0.00022998,2]
[313017821,1706628637545,-31813.13935392,0.00022998,2]
[313017822,1706628637597,-1997.2320567,0.00022998,2]
[313017823,1706628637652,-118845.28764963,0.00022998,2]
[313017824,1706628637664,-3632.67541228,0.00022999,2]
[313017825,1706628637673,-240.30506348,0.00022999,2]
[313017826,1706628637684,-161.35903848,0.00022999,2]
[313017827,1706628637693,-1650.93169972,0.00022999,2]
[313017828,1706628637702,-500.0,0.00022999,2]
[313017829,1706628637712,-362.40271201,0.00022999,2]
[313017830,1706628637721,-589.80507991,0.00022999,2]
[313017831,1706628637730,-500.0,0.00022999,2]
[313017832,1706628637740,-422.51770321,0.00022999,2]
[313017833,1706628637749,-500.0,0.00022999,2]
[313017834,1706628637758,-245.91928786,0.00022999,2]
[313017835,1706628637767,-500.0,0.00022999,2]
[313017836,1706628637777,-526.0450219,0.00022999,2]
[313017837,1706628637787,-300.02,0.00022999,2]
[313017838,1706628637796,-1000.0,0.00022999,2]
[313017839,1706628637805,-383.80238757,0.00022999,2]
[313017840,1706628637815,-234.98105362,0.00022999,2]
[313017841,1706628637824,-164.48673753,0.00022999,2]
[313017842,1706628637834,-64022.60753422,0.00023,2]
[313017843,1706628637845,-1818.65433214,0.00023,2]
[313017845,1706628637857,-2811045.53497851,0.00023,2]
[313017847,1706628637866,-131935.22508948,0.00023,2]
[313017849,1706628637878,-2062.65,0.00023,2]
[313017851,1706628637916,-19361.78671574,0.00023,2]
[313017854,1706628637927,-677.48546916,0.00023,2]
[313017856,1706628637938,-2492.19050604,0.00023,2]
[313017858,1706628637953,-3469.48555306,0.00023,2]
[313017976,1706628641742,-698.78108098,0.00022999,2]
[313017977,1706628641801,-126.68476888,0.00022999,2]
[313017978,1706628641810,-563.448,0.00023,2]
[313017979,1706628641820,-1670.8557227,0.00023,2]
[313017999,1706628642529,-169622.53435884,0.00023,2]
[313018000,1706628642540,-103934.17907646,0.00023,2]
[313018001,1706628642552,-110722.29809381,0.00023,2]
[313018002,1706628642565,-3189.54363891,0.00023,2]
[313018004,1706628642602,-308.16806821,0.00023,2]
[313018006,1706628642614,-345.85,0.00023,2]
[313018007,1706628642625,-446.14741197,0.00023,2]
[313018009,1706628642637,-1201.23505853,0.00023,2]
[313018011,1706628642650,-587.02187871,0.00023,2]
[313018013,1706628642662,-7006.89,0.00023,2]
[313018016,1706628642694,-618.99324043,0.00023,2]
[313018019,1706628642706,-427.18428536,0.00023,2]
[313018021,1706628642718,-537.88,0.00023,2]
[313018022,1706628642730,-768.44720034,0.00023,2]
[313018024,1706628642741,-2977.52841997,0.00023,2]
[313018026,1706628642754,-504.15977998,0.00023,2]
[313018027,1706628642765,-11768.32918391,0.00023,2]
[313018029,1706628642776,-1948.87583451,0.00023,2]
[313018032,1706628642787,-4845.87326741,0.00023,2]
[313018035,1706628642799,-3102.85454706,0.00023,2]
[313018040,1706628642822,-1247.73245143,0.00023,2]
[313018043,1706628642844,-2534.80452986,0.00023,2]
[313018044,1706628642855,-1387.65753446,0.00023,2]
[313018047,1706628642880,-4222.27790851,0.00023,2]
[313018049,1706628642892,-504.57445119,0.00023,2]
[313018052,1706628642908,-463.51367634,0.00023,2]
[313018053,1706628642919,-597.53,0.00023,2]
[313018054,1706628642930,-380.16156235,0.00023,2]
[313018055,1706628642942,-820.39657045,0.00023,2]
[313018063,1706628645569,-330.23482408,0.00022998,2]
[313018064,1706628645578,-124.20915461,0.00022999,2]
[313018065,1706628645594,-286.08556777,0.00022999,2]
[313018066,1706628645605,-2.43820255,0.00022999,2]
[313018067,1706628645614,-215065.4102038,0.00023,2]
[313018068,1706628645626,-716.28058986,0.00023,2]
[313018069,1706628645644,-316.21951296,0.00023,2]
[313018070,1706628645656,-928.05104172,0.00023,2]
[313018071,1706628645668,-388.35687835,0.00023,2]
[313018072,1706628645697,-11255.99856032,0.00023,2]
[313018073,1706628645708,-2381.79376849,0.00023,2]
[313018074,1706628645719,-295.78388584,0.00023,2]
[313018075,1706628645733,-354.37716682,0.00023,2]
[313018076,1706628645744,-695.73060036,0.00023,2]
[313018077,1706628645775,-5754.62408953,0.00023,2]
[313018078,1706628645786,-2613.94658545,0.00023,2]
[313018079,1706628645796,-755.02,0.00023,2]
[313018080,1706628645807,-3270.08208167,0.00023,2]
[313018081,1706628645818,-2248.46080941,0.00023,2]
[313018082,1706628645829,-2542.43907,0.00023,2]
[313018083,1706628645841,-6577.4284482,0.00023,2]
[313018084,1706628645853,-547.62,0.00023,2]
[313018085,1706628645876,-413.46,0.00023,2]
[313018086,1706628645901,-37107.19472385,0.00023,2]
[313018087,1706628645913,-1738.59603348,0.00023,2]
[313018103,1706628663770,204.0,0.00021624,2]
[313018104,1706628693874,206.0,0.00021624,2]
[313018109,1706628915270,495.94273594,0.00022501,2]
[313018110,1706628932121,167.70877809,0.00022411,2]
[313018111,1706629013583,150.63,0.00020681,2]
[313018112,1706629076654,200.0,0.00021831,2]
[313018113,1706629123969,3040.20982694,0.00021832,5]
[313018114,1706629192996,8620.9655,0.00022408,2]
[313018116,1706629314853,411.52,0.00021753,7]
[313018117,1706629325756,176.38524631,0.0003139,120]
[313018118,1706629413102,155.0,0.00022501,2]
[313018119,1706629434842,1073.34339944,0.00022501,2]
[313018120,1706629444431,1000.0,0.00022501,2]
[313018121,1706629456811,240.36283375,0.00022501,2]
[313018122,1706629473908,207.0,0.00022461,2]
[313018123,1706629478619,196.67,0.00022444,10]
[313018126,1706629503779,205.0,0.00022461,2]
[313018127,1706629505772,2078.69,0.00022288,2]
[313018128,1706629506897,382.5536188,0.00021752,7]
[313018129,1706629542031,840.0,0.00022077,2]
[313018130,1706629553564,150.63,0.00020249,2]
[313018131,1706629565947,164.04710674,0.00021752,2]
[313018132,1706629569692,361.14981153,0.00021752,2]
[313018133,1706629571734,150.0,0.00022495,2]
[313018134,1706629625372,-240.36283375,0.00022502,2]
[313018135,1706629625394,-943.45629656,0.00022502,2]
[313018136,1706629625415,-1000.0,0.00022503,2]
[313018137,1706629625434,-150.0,0.00022507,2]
[313018138,1706629625454,-300.0,0.00022507,2]
[313018139,1706629625474,-12348.07826212,0.00022508,2]
[313018140,1706629625494,-150.0,0.00022576,2]
[313018141,1706629625514,-164.64,0.00022613,2]
[313018142,1706629625534,-246.42285494,0.00022768,2]
[313018143,1706629625557,-494.01556802,0.00022768,2]
[313018144,1706629625578,-6368.1403418,0.0002277,2]
[313018145,1706629633603,-10865.23210692,0.0002277,2]
[313018146,1706629633624,-416.3619,0.000228,2]
[313018147,1706629633647,-1757.89488584,0.000228,2]
[313018148,1706629633667,-200.0,0.00022816,2]
[313018149,1706629633689,-800.0,0.00022816,2]
[313018150,1706629633709,-200.0,0.00022816,2]
[313018151,1706629633728,-499.99,0.00022816,2]
[313018152,1706629633748,-533.56145808,0.00022897,2]
[313018153,1706629633769,-172.7532029,0.00022897,2]
[313018154,1706629633789,-294.48445557,0.00022897,2]
[313018155,1706629633809,-161.35903848,0.00022898,2]
[313018156,1706629633832,-233.42707403,0.00022898,2]
[313018157,1706629633852,-400.0,0.00022898,2]
[313018158,1706629633871,-697.96516303,0.00022898,2]
[313018159,1706629633893,-203.37710716,0.00022898,2]
[313018160,1706629633914,-2006.5353,0.00022898,2]
[313018161,1706629633934,-1000.0,0.00022898,2]
[313018162,1706629633955,-239.8,0.00022898,2]
[313018163,1706629633980,-3500.39,0.00022898,2]
[313018164,1706629634001,-206.4208,0.00022899,2]
[313018165,1706629634021,-26558.0321,0.00022899,2]
[313018166,1706629634042,-2500.0,0.00022899,2]
[313018167,1706629634063,-29250.96732595,0.00022899,2]
[313018168,1706629636103,-867.77322652,0.00022899,2]
[313018169,1706629643085,-726.95,0.0002277,2]
[313018170,1706629643105,-316.51996725,0.00022897,2]
[313018171,1706629643124,-240.36283375,0.00022897,2]
[313018172,1706629643144,-292.24421244,0.00022897,2]
[313018173,1706629643166,-129297.52492733,0.00022899,2]
[313018193,1706629831729,-240.36283375,0.00022798,2]
[313018194,1706629831741,-736.4,0.00022798,2]
[313018195,1706629831753,-65.5992277,0.00022798,2]
[313018196,1706629831770,-657.2807723,0.00022798,2]
[313018197,1706629831782,-726.92,0.00022799,2]
[313018198,1706629831794,-727.47,0.00022799,2]
[313018199,1706629831806,-35232.51965752,0.00022799,2]
[313018200,1706629831820,-629.86,0.00022799,2]
[313018201,1706629831836,-22405.11650714,0.00022799,2]
[313018202,1706629831861,-8091.83323071,0.00022799,2]
[313018203,1706629831878,-46939.6864135,0.00022799,2]
[313018204,1706629831898,-424.01934112,0.00022799,2]
[313018205,1706629831930,-10533.63762,0.00022799,2]
[313018207,1706629831990,-1003.23766428,0.00022799,2]
[313018254,1706629839194,-358.01197968,0.00022799,2]
[313018255,1706629839206,-119382.07758605,0.00022799,2]
[313018256,1706629839215,-1000.0,0.000228,2]
[313018257,1706629839224,-150.0,0.00022898,2]
[313018258,1706629839234,-714.99,0.00022898,2]
[313018259,1706629839245,-720.45,0.00022898,2]
[313018260,1706629839254,-728.2,0.00022898,2]
[313018261,1706629839264,-726.57,0.00022899,2]
[313018262,1706629839274,-2442.8482,0.00022899,2]
[313018263,1706629839284,-726.38,0.00022899,2]
[313018264,1706629839294,-17074.99192584,0.00022899,2]
[313018265,1706629839306,-2314.4807,0.000229,2]
[313018266,1706629839316,-7773.5097,0.000229,2]
[313018267,1706629839326,-189.5207,0.000229,2]
[313018268,1706629839336,-31155.181,0.000229,2]
[313018269,1706629839345,-197.0786,0.000229,2]
[313018270,1706629839354,-18448.927,0.000229,2]
[313018271,1706629839363,-15739.7016,0.000229,2]
[313018272,1706629839372,-100000.0,0.000229,2]
[313018273,1706629839381,-500.0,0.000229,2]
[313018274,1706629839390,-184.81576064,0.000229,2]
[313018275,1706629839401,-1538.15802511,0.000229,2]
[313018276,1706629839411,-150.63,0.00022928,2]
[313018277,1706629839421,-425.92345826,0.00022998,3]
[313018278,1706629839430,-760.00771655,0.00022998,2]
[313018279,1706629839439,-3632.67541228,0.00022998,2]
[313018280,1706629839449,-355.75068658,0.00022998,2]
[313018281,1706629839458,-292.183463,0.00022998,2]
[313018283,1706629839468,-2063.66462465,0.00022999,2]
[313018285,1706629839476,-300.02,0.00022999,2]
[313018286,1706629839486,-202361.64227889,0.00023,2]
[313018288,1706629839496,-1360.0,0.00023,2]
[313018290,1706629839507,-387.0,0.00023,2]
[313018292,1706629839516,-636.495,0.00023,2]
[313018294,1706629839525,-949.0,0.00023,2]
[313018296,1706629839535,-451.639,0.00023,2]
[313018297,1706629839544,-872.565,0.00023,2]
[313018298,1706629839556,-839.0,0.00023,2]
[313018299,1706629839566,-1249.0,0.00023,2]
[313018300,1706629839575,-215.0,0.00023,2]
[313018301,1706629839583,-1241.129,0.00023,2]
[313018302,1706629839592,-426.0,0.00023,2]
[313018303,1706629839600,-232.197,0.00023,2]
[313018304,1706629839609,-1940.0,0.00023,2]
[313018305,1706629839619,-241.664,0.00023,2]
[313018306,1706629839627,-874.141,0.00023,2]
[313018307,1706629839636,-821.101,0.00023,2]
[313018309,1706629839645,-230.034,0.00023,2]
[313018311,1706629839653,-442.251,0.00023,2]
[313018313,1706629839662,-3628.727,0.00023,2]
[313018314,1706629839672,-2914.0,0.00023,2]
[313018315,1706629839681,-8179.147,0.00023,2]
[313018316,1706629839690,-2280.0,0.00023,2]
[313018317,1706629839699,-2571.184,0.00023,2]
[313018318,1706629839709,-150.98,0.00023,2]